[Event "Budapest One Week IM-A 03-2025"]
[Site "Budapest"]
[Date "2025.03.18"]
[Round "3.3"]
[White "Nakahara, Kan"]
[Black "Foldes, Marton Gabor"]
[Result "0-1"]
[Annotator "TA"]
[ECO "B22"]
[WhiteElo "2113"]
[BlackElo "2332"]
[PlyCount "200"]
[EventDate "2025.03.17"]
[EventType "tourn"]
[EventCountry "HUN"]
[SourceTitle "playchess.com"]
[Source "ChessBase"]
[SourceQuality "1"]
[TimeControl "5400+30"]

{[%evp 13,200,10,0,7,11,8,0,0,10,0,12,17,19,-20,-3,-50,-47,-33,-44,-91,-93,-59,-65,-61,-68,-59,-66,-66,-5,-96,-94,-107,-104,-104,-106,-119,-116,-105,-68,-133,-129,-143,-149,-139,-145,-174,-164,-158,-113,-166,-177,-166,-166,-168,-168,-176,-176,-197,-194,-273,-253,-288,-270,-278,-283,-312,-149,-192,-185,-206,-208,-227,-227,-621,-639,-1098,-1079,-828,-224,-1158,-1113,-1060,-954,-432,-125,-125,-125,-365,-244,-879,-1379,-1941,-1159,-816,-4206,-4114,-2587,-4568,-455,-4618,-4608,-4560,0,-4939,-4626,-4405,-1826,-4582,0,-4385,-3856,-4847,-4621,-5037,-3587,-3869,-1246,-2305,0,-3066,0,-748,-697,-4337,-568,-508,-381,-4211,-3823,-6555,-6056,-5631,-5089,-6662,-6662,-12242,-2614,-12584,-160,-12412,-4581,-10415,-2021,-11628,-29940,-29947,-9889,-29959,-29960,-29970,-29972,-29968,-29972,-29973,-29973,-29973,-29972,-29974,-29975,-29975,-29976,-29974,-29975,-29977,-29978,-29978,-29979,-29979,-29980,-29983,-29984,-29984,-29981,-29986,-29987,-29987,-29988,-29987,-29988,-29992,-29993,-29993,-29994,-29995,-29996,-29996,-29997,-29997,-29998]} 1. e4 {[%emt 0:00:02]} c5 {[%emt 0:00:13]} 2. c3 {[%emt 0:00:11]} Nf6 {[%emt 0:00:49]} 3. e5 {[%emt 0:00:04]} Nd5 {[%emt 0:00:08]} 4. Nf3 {[%emt 0:00:06]} e6 {[%emt 0:01:00]} 5. d4 {[%emt 0:00:33]} cxd4 {[%emt 0:00:08]} 6. cxd4 {[%emt 0:00:02]} d6 {[%emt 0:00:50]} 7. Bc4 {[%emt 0:00:14]} Be7 {[%emt 0:00:18] Nowadays more popular than 7...Nc6.} 8. O-O {[%emt 0:00:21] B22: Sicilian: 2 c3.} O-O {[%emt 0:00:27]} 9. Bd2 {[%emt 0:00:52]} b6 {[%emt 0:04:30]} 10. Qe2 {[%emt 0:02:36] The position is equal.} Bb7 {[%emt 0:01:19]} 11. Nc3 {[%emt 0:00:57]} Nxc3 {[%emt 0:09:41]} 12. Bxc3 {[%emt 0:00:50]} Nd7 {[%emt 0:20:37]} 13. Nd2 $146 {[%emt 0:08:26]} (13. Rfe1 dxe5 14. dxe5 Qc7 15. Nd4 a6 16. Rad1 Rfd8 17. Bxe6 fxe6 18. Nxe6 Qc6 19. Qg4 {0-1 Zhigalko,S (2671)-Mareco,S (2635) Wch Blitz Doha 2016 (11)}) 13... a6 {[%emt 0:06:14]} 14. a4 {[%emt 0:02:40]} (14. Rfd1 $11) 14... dxe5 $15 {[%emt 0:08:33]} 15. dxe5 {[%emt 0:00:28]} Nc5 {[%emt 0:14:00]} 16. b4 {[%emt 0:07:56] [#]} (16. Nf3 $15) 16... Nxa4 $1 $17 {[%emt 0:00:48]} 17. Rxa4 {[%emt 0:00:06][%cal Rc4a6]} b5 {[%emt 0:00:10]} 18. Ra3 {[%emt 0:01:13]} bxc4 {[%emt 0:00:10] Black plays on the queen side and is better} 19. Nxc4 {[%emt 0:00:41]} Qc7 {[%emt 0:08:12]} 20. Qg4 {[%emt 0:05:24][%cal Oc4d6]} Bd5 {[%emt 0:04:13]} ({Black should try} 20... h5 $15 21. Qf4 a5) 21. Ne3 {[%emt 0:10:23]} (21. Nd6 $1 $11 {remains equal.}) 21... Bc6 $36 {[%emt 0:00:26][%mdl 2048] Black is in control.} 22. Qf4 {[%emt 0:10:00]} Bb5 {[%emt 0:04:28] A strong pair of Bishops.} 23. Rc1 {[%emt 0:00:58]} Rac8 {[%emt 0:01:54]} 24. h4 {[%emt 0:05:07]} f5 {[%emt 0:03:07]} 25. Bb2 {[%emt 0:03:26]} Qb7 {[%emt 0:01:54]} 26. Rac3 {[%emt 0:02:09]} (26. Nc4 $1 $15) 26... Rxc3 {[%emt 0:02:04]} 27. Rxc3 {[%emt 0:00:45]} Qe4 {[%emt 0:00:53] Prevents Nc4. Black is more active.} 28. Qxe4 {[%emt 0:04:36]} fxe4 {[%emt 0:00:01]} 29. Nc2 {[%emt 0:00:33]} Bxh4 {[%emt 0:00:58]} 30. g3 {[%emt 0:00:10]} Be7 {[%emt 0:04:32]} 31. Rc7 {[%emt 0:01:53]} (31. Bc1 $17 {keeps fighting.}) 31... Bd8 $1 $19 {[%emt 0:01:03]} 32. Rb7 {[%emt 0:03:02]} Bc6 $1 {[%emt 0:02:16]} 33. Rb8 {[%emt 0:00:30]} Bc7 {[%emt 0:00:29]} 34. Rxf8+ {[%emt 0:00:30]} Kxf8 {[%emt 0:00:00][%mdl 4096] Endgame KBB-KBN. Black is a pawn up.} 35. Kf1 {[%emt 0:03:53]} Ba4 {[%emt 0:00:39]} 36. Nd4 {[%emt 0:02:18]} (36. Na3 $142) 36... Kf7 {[%emt 0:00:06]} (36... Bxe5 37. Nxe6+ Ke7 38. Bxe5 $11) 37. Ke2 {[%emt 0:00:55]} Bxe5 {[%emt 0:00:45]} 38. Ke3 {[%emt 0:00:05]} Bd6 {[%emt 0:00:59]} 39. Bc3 {[%emt 0:00:11]} Bd7 {[%emt 0:00:33]} (39... e5 $19 40. Nf5 Bc7 41. Nxg7 Kxg7 42. Kxe4 Kf6) 40. Kxe4 {[%emt 0:00:25]} g5 {[%emt 0:00:31]} 41. Ke3 {[%emt 0:03:58]} Kg6 $1 {[%emt 0:00:29]} 42. Nf3 {[%emt 0:01:06]} Kf5 {[%emt 0:00:14] Against Ne5} 43. g4+ $2 {[%emt 0:09:32]} (43. Nd4+ Kg4 44. Nb3) 43... Kxg4 {[%emt 0:00:01] ( -> ...Bf4+)} 44. Ne5+ {[%emt 0:00:05]} Bxe5 {[%emt 0:00:01]} 45. Bxe5 {[%emt 0:00:01] KB-KB. Black is two pawns up.} Bc6 $2 {[%emt 0:01:39]} (45... h5 46. f3+ Kf5) 46. Ke2 $2 {[%emt 0:00:20]} (46. f4) 46... Bb5+ {[%emt 0:00:10]} 47. Ke3 {[%emt 0:00:04]} h5 {[%emt 0:00:55]} 48. f3+ {[%emt 0:00:26]} Kh3 $2 {[%emt 0:00:30]} (48... Kf5 $19 {has better winning chances.} 49. Bd4 e5) 49. Kf2 $17 {[%emt 0:00:04]} Bc6 {[%emt 0:00:22]} 50. Bf6 $2 {[%emt 0:00:40] [#]} (50. Bc7 $17) 50... g4 $1 $19 {[%emt 0:00:08]} 51. fxg4 {[%emt 0:00:01]} Kxg4 {[%emt 0:00:07]} ({Not} 51... hxg4 52. Be5 $17) 52. Be7 {[%emt 0:02:14]} Kf4 {[%emt 0:00:50]} 53. Bd6+ {[%emt 0:01:05]} Ke4 {[%emt 0:00:10]} (53... e5 $142 54. Bf8 h4) 54. Be7 {[%emt 0:00:13]} Kd3 {[%emt 0:01:04]} 55. Bf6 {[%emt 0:00:23]} Kc4 {[%emt 0:00:07]} (55... Bb7 $142 56. Be5 Bd5) 56. Be7 {[%emt 0:00:23]} (56. Ke3 $142 Kxb4 57. Bd8) 56... Kd4 {[%emt 0:00:37]} 57. Bf6+ {[%emt 0:01:25]} Ke4 $2 {[%emt 0:00:57]} (57... e5 $19 58. Ke2 Bb5+ 59. Kd2 Ke4) 58. Ke2 $2 {[%emt 0:00:48][%mdl 8192]} (58. Be7 $11) 58... e5 {[%emt 0:00:15]} 59. Kf2 {[%emt 0:00:35]} Kf4 {[%emt 0:00:09]} (59... Kf5 $142 60. Bh4 Ke4) 60. Be7 {[%emt 0:00:26]} Ke4 {[%emt 0:00:44]} 61. Bf6 $1 {[%emt 0:00:59]} Kf5 {[%emt 0:00:46]} 62. Be7 {[%emt 0:00:14]} Bh1 {[%emt 0:00:38]} 63. Ke3 {[%emt 0:01:31]} Ke6 {[%emt 0:00:37]} 64. Bd8 {[%emt 0:00:27]} Kd5 {[%emt 0:00:22]} (64... e4 $142 65. Kd4 Bg2) 65. Be7 {[%emt 0:00:26]} Ke6 {[%emt 0:00:31]} 66. Bd8 $1 {[%emt 0:00:05]} Kd5 {[%emt 0:00:36]} (66... e4 $142 67. Kd4 Kf5) 67. Be7 $1 {[%emt 0:00:05]} Kc4 {[%emt 0:00:11]} 68. Ke2 {[%emt 0:02:14]} Kd4 {[%emt 0:00:30] Strongly threatening ...Ke4.} 69. Bf6 {[%emt 0:00:29]} Bd5 {[%emt 0:00:17]} 70. Kf2 $2 {[%emt 0:03:25]} (70. Ke1 Kc4 71. Bxe5) 70... Ke4 {[%emt 0:00:10]} 71. Ke2 {[%emt 0:00:09]} Bc4+ {[%emt 0:00:13]} 72. Kf2 {[%emt 0:00:13]} Kf4 {[%emt 0:00:06]} 73. Be7 {[%emt 0:00:08]} Bd5 {[%emt 0:00:14]} 74. Bd8 {[%emt 0:00:15]} Bh1 {[%emt 0:00:58]} (74... Bf3 $142 75. Bh4 Kg4) 75. Be7 {[%emt 0:00:12]} Kg4 {[%emt 0:00:33]} 76. Bf6 $2 {[%emt 0:00:13] [#]} (76. Kg1 $17) 76... e4 $1 {[%emt 0:00:16]} 77. Be7 {[%emt 0:00:45]} Bf3 {[%emt 0:00:28]} 78. Bd8 {[%emt 0:00:08]} h4 {[%emt 0:00:22]} 79. Be7 {[%emt 0:00:38]} h3 {[%emt 0:00:14]} (79... Bh1 $142 80. Bd8 h3 81. Bc7 Kf5 82. Ke3 Ke6 83. Kd4 Kd7 84. Bg3 Bg2 85. Kc4 Kc6 86. Bf4 Bf3 87. Kd4 Kb5 88. Bd6 Bg2 89. Ke3 Kc4 90. Ke2 Kd4 91. Bh2 e3 92. Bf4 Bf3+ 93. Kxf3 Kd3 94. Bg3 e2 95. Bf2 Kd2 (95... h2 96. Kg2 $11) 96. Kg3 e1=Q (96... e1=R $2 97. Kxh3 Rb1 98. Bb6 $19) (96... e1=B $2 97. Bxe1+ Kxe1 98. Kh2 $19) 97. Bxe1+ Kxe1 98. Kxh3 Kd2 99. Kh4 Kc3 100. Kg4 Kxb4 101. Kf3 Kc3 102. Ke2 a5 103. Kd1 Kb2 104. Kd2 a4 105. Ke3 Kc3 106. Kf4 a3 107. Kg5 a2 108. Kf5 a1=Q (108... a1=B 109. Kg6 $11) 109. Kg6 Qf1 110. Kg5 Kd4 111. Kg6 Ke5 112. Kg7 Qf6+ 113. Kh7 Qg5 114. Kh8 Kf6 115. Kh7 Qg7#) 80. Bd6 {[%emt 0:00:03]} Kf5 {[%emt 0:00:14] Black mates.} 81. Kg3 {[%emt 0:02:03]} Bg2 {[%emt 0:00:10]} 82. Kf2 {[%emt 0:01:30]} Ke6 {[%emt 0:00:10]} 83. Bf4 {[%emt 0:00:23]} Kd5 {[%emt 0:00:00]} 84. Ke3 {[%emt 0:00:07]} Kc4 {[%emt 0:00:32]} 85. Bd6 {[%emt 0:00:05]} Bf3 {[%emt 0:00:30]} 86. Kd2 {[%emt 0:01:25]} Kb3 {[%emt 0:00:30]} 87. Ke3 {[%emt 0:01:00]} Kc3 {[%emt 0:00:08]} 88. Kf2 {[%emt 0:00:28]} Kd3 {[%emt 0:00:08]} 89. Bc7 {[%emt 0:00:46]} Bg4 {[%emt 0:01:17]} 90. Bf4 {[%emt 0:00:37]} Be6 {[%emt 0:00:29]} 91. Bd6 {[%emt 0:00:41]} e3+ {[%emt 0:00:31]} 92. Ke1 {[%emt 0:00:06]} Bc4 {[%emt 0:00:34]} 93. Kd1 {[%emt 0:00:26]} Ke4 {[%emt 0:00:11]} 94. Ke1 {[%emt 0:00:24]} Kf3 {[%emt 0:00:05]} 95. Kd1 {[%emt 0:00:31]} Kf2 {[%emt 0:00:18]} 96. Bc5 {[%emt 0:00:04]} h2 {[%emt 0:00:05]} 97. Kc2 {[%emt 0:00:08]} h1=Q {[%emt 0:00:08]} 98. Kb2 {[%emt 0:00:11]} Qd1 {[%emt 0:00:21]} 99. Be7 {[%emt 0:00:10]} Qb3+ {[%emt 0:00:43]} 100. Kc1 {[%emt 0:00:04]} Bd3 {[%emt 0:00:14] Weighted Error Value: White=0.63/Black=0.39  Loses game:     	White=1     	---        Missed win:     	---       	Black=1      Mistake:       	White=8     	Black=1      Inaccurate:     	White=5     	Black=1      OK:         	White=15    	Black=17     Best:        	White=1     	Black=3      Strong:       	White=1     	Black=2      Brilliant:      	---       	Black=1} 0-1

[Event "Budapest One Week IM-A 03-2025"]
[Site "Budapest"]
[Date "2025.03.18"]
[Round "3.4"]
[White "Krizsany, Laszlo"]
[Black "Ratsma, Midas"]
[Result "0-1"]
[Annotator "NA RC"]
[ECO "D35"]
[WhiteElo "2287"]
[BlackElo "2268"]
[PlyCount "84"]
[EventDate "2025.03.17"]
[EventType "tourn"]
[EventCountry "HUN"]
[SourceTitle "playchess.com"]
[Source "ChessBase"]
[SourceQuality "1"]
[TimeControl "5400+30"]

1. d4 {[%emt 0:00:04]} d5 {[%emt 0:00:03]} 2. c4 {[%emt 0:00:05]} e6 {[%emt 0:00:04]} 3. Nc3 {[%emt 0:00:05]} Nf6 {[%emt 0:00:04]} 4. cxd5 {[%emt 0:00:07]} Nxd5 {[%emt 0:00:04]} 5. e4 {[%emt 0:00:18]} Nxc3 {[%emt 0:00:06]} 6. bxc3 {[%emt 0:00:07]} c5 {[%emt 0:00:04]} 7. Nf3 {[%emt 0:00:28]} cxd4 {[%emt 0:00:07]} 8. cxd4 {[%emt 0:00:04]} Bb4+ {[%emt 0:00:05]} 9. Bd2 {[%emt 0:00:10]} Bxd2+ {[%emt 0:00:04]} 10. Qxd2 {[%emt 0:00:05]} O-O {[%emt 0:00:08]} 11. Rc1 {[%emt 0:00:33]} b6 {[%emt 0:00:20]} 12. Bd3 {[%emt 0:00:29]} Nd7 {[%emt 0:00:47]} 13. O-O {[%emt 0:00:53]} Bb7 {[%emt 0:00:07]} 14. Qf4 {[%emt 0:00:49]} Nf6 {[%emt 0:00:45]} 15. h3 {[%emt 0:04:17]} h6 {[%emt 0:00:18]} 16. Rfd1 {[%emt 0:08:31]} Rc8 {[%emt 0:01:32]} 17. Bb1 {[%emt 0:17:58]} Qd7 {[%emt 0:09:16]} 18. Qe3 {[%emt 0:09:05]} Rfd8 {[%emt 0:06:01]} 19. Rxc8 {[%emt 0:05:06]} Rxc8 {[%emt 0:00:24]} 20. Nd2 {[%emt 0:00:36]} Rc7 {[%emt 0:19:31]} 21. f3 {[%emt 0:01:07]} Ba6 {[%emt 0:07:48]} 22. Nb3 {[%emt 0:02:27]} Qc8 {[%emt 0:07:26]} 23. Rc1 {[%emt 0:02:04]} Bc4 {[%emt 0:02:23]} 24. Nd2 {[%emt 0:01:52]} Bb5 {[%emt 0:03:16]} 25. Nb3 {[%emt 0:00:42]} Bc4 {[%emt 0:04:11]} 26. Nd2 {[%emt 0:00:12]} b5 {[%emt 0:01:54]} 27. Nxc4 {[%emt 0:02:54]} Rxc4 {[%emt 0:03:38]} 28. Rxc4 {[%emt 0:00:44]} Qxc4 {[%emt 0:01:00]} 29. g4 {[%emt 0:13:30]} b4 {[%emt 0:04:13]} 30. Qd3 {[%emt 0:06:28]} Qc1+ {[%emt 0:02:36]} 31. Kg2 {[%emt 0:00:09]} g5 {[%emt 0:04:55]} 32. Qc2 {[%emt 0:07:49]} Qe3 {[%emt 0:02:33]} 33. Qf2 {[%emt 0:01:16]} Qc3 {[%emt 0:01:34]} 34. Bc2 {[%emt 0:04:06]} a5 {[%emt 0:01:52]} 35. Bb3 {[%emt 0:03:54]} Kg7 {[%emt 0:02:50]} 36. Qg1 {[%emt 0:03:26]} Nd7 {[%emt 0:01:19]} 37. Qd1 {[%emt 0:00:45]} Qb2+ {[%emt 0:05:11]} 38. Kg3 {[%emt 0:00:46]} h5 {[%emt 0:01:49]} 39. gxh5 {[%emt 0:03:00]} Nf6 {[%emt 0:00:31]} 40. h4 {[%emt 0:02:50]} Nxh5+ {[%emt 0:05:14]} 41. Kg4 {[%emt 0:00:38]} Qg2+ {[%emt 0:01:06]} 42. Kxh5 {[%emt 0:00:03]} Qh3 {[%emt 0:00:38]} 0-1

[Event "Budapest One Week IM-A 03-2025"]
[Site "Budapest"]
[Date "2025.03.18"]
[Round "3.5"]
[White "Chakrabarty, Reyaansh"]
[Black "Singh, Siddharth"]
[Result "1-0"]
[Annotator "NA RC"]
[ECO "B90"]
[WhiteElo "2181"]
[BlackElo "2239"]
[PlyCount "78"]
[EventDate "2025.03.17"]
[EventType "tourn"]
[EventCountry "HUN"]
[SourceTitle "playchess.com"]
[Source "ChessBase"]
[SourceQuality "1"]
[TimeControl "5400+30"]

1. e4 {[%emt 0:01:59]} c5 {[%emt 0:00:06]} 2. Nf3 {[%emt 0:00:03]} d6 {[%emt 0:00:02]} 3. d4 {[%emt 0:00:07]} cxd4 {[%emt 0:00:03]} 4. Nxd4 {[%emt 0:00:07]} Nf6 {[%emt 0:00:04]} 5. Nc3 {[%emt 0:00:05]} a6 {[%emt 0:00:03]} 6. Rg1 {[%emt 0:00:02]} e5 {[%emt 0:01:19]} 7. Nb3 {[%emt 0:00:01]} h5 {[%emt 0:02:06]} 8. h3 {[%emt 0:00:19]} Be6 {[%emt 0:00:36]} 9. Be3 {[%emt 0:01:53]} Nbd7 {[%emt 0:00:43]} 10. Qd2 {[%emt 0:00:07]} h4 {[%emt 0:02:08]} 11. O-O-O {[%emt 0:00:47]} Rc8 {[%emt 0:00:46]} 12. Bd3 {[%emt 0:03:01]} b5 {[%emt 0:02:53]} 13. f4 {[%emt 0:01:00]} Be7 {[%emt 0:02:25]} 14. Kb1 {[%emt 0:03:21]} Nb6 {[%emt 0:02:36]} 15. f5 {[%emt 0:08:47]} Bd7 {[%emt 0:06:33]} 16. g4 {[%emt 0:14:11]} b4 {[%emt 0:04:41]} 17. Qf2 {[%emt 0:04:10]} Nc4 {[%emt 0:02:44]} 18. Bxc4 {[%emt 0:01:07]} Rxc4 {[%emt 0:00:11]} 19. Nd5 {[%emt 0:03:03]} Nxd5 {[%emt 0:04:39]} 20. exd5 {[%emt 0:00:30]} Qa8 {[%emt 0:13:44]} 21. Nd2 {[%emt 0:00:31]} Qxd5 {[%emt 0:06:44]} 22. Nxc4 {[%emt 0:00:01]} Qxc4 {[%emt 0:00:03]} 23. g5 {[%emt 0:00:51]} d5 {[%emt 0:00:52]} 24. f6 {[%emt 0:19:14]} gxf6 {[%emt 0:00:12]} 25. gxf6 {[%emt 0:00:03]} Bd6 {[%emt 0:00:18]} 26. Bg5 {[%emt 0:02:34]} Bxh3 {[%emt 0:05:40]} 27. Rh1 {[%emt 0:09:49]} Be6 {[%emt 0:00:57]} 28. Rxh4 {[%emt 0:01:00]} Rxh4 {[%emt 0:00:08]} 29. Bxh4 {[%emt 0:00:25]} d4 {[%emt 0:03:52]} 30. b3 {[%emt 0:00:08]} Qc5 {[%emt 0:00:29]} 31. Bg3 {[%emt 0:01:37]} Kd7 {[%emt 0:00:55]} 32. Re1 {[%emt 0:02:03]} a5 {[%emt 0:00:51]} 33. Qf3 {[%emt 0:05:15]} Kc7 {[%emt 0:01:22]} 34. Qe2 {[%emt 0:03:24]} a4 {[%emt 0:09:37]} 35. Bxe5 {[%emt 0:00:06]} axb3 {[%emt 0:00:05]} 36. axb3 {[%emt 0:01:36]} Bxe5 {[%emt 0:04:54]} 37. Qxe5+ {[%emt 0:00:10]} Kc6 {[%emt 0:00:03]} 38. Qxc5+ {[%emt 0:00:10]} Kxc5 {[%emt 0:00:05]} 39. Rxe6 {[%emt 0:00:01]} Kd5 1-0

[Event "Budapest One Week IM-A 03-2025"]
[Site "Budapest"]
[Date "2025.03.19"]
[Round "4.1"]
[White "Turzo, Attila"]
[Black "Singh, Siddharth"]
[Result "0-1"]
[Annotator "TA"]
[ECO "D02"]
[WhiteElo "2272"]
[BlackElo "2239"]
[PlyCount "146"]
[EventDate "2025.03.17"]
[EventType "tourn"]
[EventCountry "HUN"]
[SourceTitle "playchess.com"]
[Source "ChessBase"]
[SourceQuality "1"]
[TimeControl "5400+30"]

{[%evp 14,146,-29,-31,-27,-29,-29,-26,-24,-22,-21,-39,4,-4,0,-35,-31,-24,-19,-11,23,13,27,0,0,-25,0,0,0,0,0,-46,-33,-14,-29,-55,-55,-76,-73,-93,-85,-69,-28,-33,-30,-29,-24,-107,-96,-72,-89,-105,-68,-64,-65,-60,-62,-69,-37,-37,-37,-50,-29,-29,-29,-29,-29,-29,-29,-29,-29,-29,-18,-29,-12,-11,-8,-11,-12,-14,-14,-14,-14,-18,-14,-18,-16,-29,-29,-29,-8,-10,-8,-8,-8,-8,-8,-52,-52,-52,-52,-43,-12,-72,-72,-72,-72,-72,-72,-73,-73,-73,-73,-73,-72,-72,-72,-73,-73,-73,-73,-73,-73,-80,-80,-29977,-29979,-29991,-29992,-29992,-29992,-29992,-29993,-29998,-29999]} 1. d4 {[%emt 0:00:04]} Nf6 {[%emt 0:00:10]} 2. Nf3 {[%emt 0:00:12]} d5 {[%emt 0:00:07]} 3. Bf4 {[%emt 0:00:10]} c5 {[%emt 0:00:05]} 4. e3 {[%emt 0:00:07]} Nc6 {[%emt 0:00:05]} 5. c3 {[%emt 0:00:09]} Qb6 {[%emt 0:00:16]} 6. Qb3 {[%emt 0:00:17]} c4 {[%emt 0:00:08]} 7. Qc2 {[%emt 0:00:06]} Bf5 {[%emt 0:00:05]} 8. Qc1 {[%emt 0:00:07]} (8. Qxf5 Qxb2 9. Nfd2 g6 $19 (9... Qxa1 $2 10. Qc2 $19)) 8... Nh5 {[%emt 0:00:05] D02: 1 d4 d5 2 Nf3 sidelines, including 2...Nf6 3 g3 and 2...Nf6 3 Bf4.} 9. Bg3 {[%emt 0:00:23]} Nxg3 {[%emt 0:00:14]} 10. hxg3 {[%emt 0:00:02]} g6 {[%emt 0:00:08] Black has an edge.} 11. Nbd2 {[%emt 0:00:45][%cal Oe3e4]} h5 {[%emt 0:00:06]} 12. Be2 {[%emt 0:05:53]} Bh6 $146 {[%emt 0:05:56]} (12... Bg7 13. e4 Bxe4 14. Nxe4 dxe4 15. Nd2 Bh6 16. f4 exf3 17. Bxf3 e5 18. Qc2 exd4 19. Nxc4 {0-1 Mikhailovsky,V (2209)-Asgarizadeh,A (2452) Titled Tuesday intern op 3rd Jan blitz 2019 (2)}) 13. O-O {[%emt 0:10:23]} O-O {[%emt 0:02:05]} 14. Bd1 {[%emt 0:01:12]} Qc7 {[%emt 0:04:33]} 15. Bc2 {[%emt 0:01:20]} Bxc2 {[%emt 0:00:15]} 16. Qxc2 {[%emt 0:00:02]} f5 {[%emt 0:00:09]} 17. b3 {[%emt 0:20:22]} b5 {[%emt 0:00:12]} 18. bxc4 {[%emt 0:00:07]} bxc4 {[%emt 0:00:08]} 19. Qa4 {[%emt 0:00:03][%cal Od2c4]} Bg7 {[%emt 0:16:56]} 20. Nxc4 {[%emt 0:04:48]} dxc4 {[%emt 0:01:41]} 21. Qxc4+ {[%emt 0:00:02]} e6 {[%emt 0:00:06]} 22. Ng5 {[%emt 0:09:28]} (22. Qxe6+ $11 {was preferable.} Kh7 23. Rab1) 22... Rfe8 $15 {[%emt 0:05:07]} 23. Nxe6 {[%emt 0:00:35]} Qf7 {[%emt 0:00:08]} 24. Qxc6 {[%emt 0:00:29]} Rac8 {[%emt 0:00:17]} (24... Rxe6 $2 25. Qxa8+ Kh7 26. c4 $18) 25. Qa4 {[%emt 0:06:18] Strongly threatening d5.} Rxe6 {[%emt 0:02:41]} 26. c4 {[%emt 0:01:36]} Re4 $36 {[%emt 0:01:29][%mdl 2048] Black has strong initiative.} 27. Rac1 {[%emt 0:08:06]} g5 {[%emt 0:21:24]} 28. c5 {[%emt 0:07:24]} h4 {[%emt 0:01:15]} 29. gxh4 {[%emt 0:03:22]} gxh4 {[%emt 0:00:06]} 30. Qc4 {[%emt 0:01:12]} (30. Qa6 $11 Rc7 31. Kh2) 30... f4 {[%emt 0:03:27]} 31. Qxf7+ {[%emt 0:00:26]} Kxf7 {[%emt 0:00:03]} 32. d5 {[%emt 0:08:27]} Re5 {[%emt 0:03:01] Black is more active.} 33. Rc4 $1 {[%emt 0:05:56]} Rxd5 {[%emt 0:01:05] Strongly threatening ...fxe3.} 34. Rxf4+ {[%emt 0:00:08]} Bf6 {[%emt 0:00:15]} 35. Ra4 $1 {[%emt 0:00:07]} Rcxc5 {[%emt 0:03:35]} 36. Rxa7+ {[%emt 0:00:16]} Kg6 {[%emt 0:00:05]} 37. a4 {[%emt 0:02:21]} Ra5 {[%emt 0:02:02]} 38. Rxa5 {[%emt 0:00:08]} Rxa5 $11 {[%emt 0:00:05][%mdl 4096] Endgame KRB-KR} 39. Kh2 {[%emt 0:00:30]} Rxa4 {[%emt 0:00:05]} 40. g3 {[%emt 0:00:29]} hxg3+ {[%emt 0:00:09]} 41. Kxg3 {[%emt 0:00:11]} Kf5 {[%emt 0:00:45]} 42. Kf3 {[%emt 0:00:31]} Ra8 {[%emt 0:00:45]} 43. Rb1 {[%emt 0:00:16]} Rf8 {[%emt 0:00:06]} 44. Rb5+ {[%emt 0:00:15]} Be5 {[%emt 0:00:08]} 45. Ke2 {[%emt 0:00:14]} Ke6 {[%emt 0:00:59]} 46. Rb6+ {[%emt 0:00:20]} Bd6 {[%emt 0:00:08]} 47. Ra6 {[%emt 0:01:20]} Rb8 {[%emt 0:00:36]} 48. Ra2 {[%emt 0:00:23]} Rb1 {[%emt 0:00:39]} 49. Rc2 {[%emt 0:00:21]} Bb4 {[%emt 0:00:39]} 50. Ra2 {[%emt 0:00:16]} Kd5 {[%emt 0:00:07]} 51. Kf3 {[%emt 0:01:25]} Kc4 {[%emt 0:00:22]} 52. Ke4 {[%emt 0:00:24]} Rh1 {[%emt 0:00:23]} 53. Rc2+ {[%emt 0:01:07]} Bc3 {[%emt 0:00:07]} 54. f4 {[%emt 0:00:40]} Rh8 {[%emt 0:00:01]} 55. Rg2 {[%emt 0:01:07]} Re8+ {[%emt 0:00:07]} 56. Kf3 {[%emt 0:00:14]} Kd3 {[%emt 0:00:10]} 57. Re2 {[%emt 0:00:38]} Bd2 {[%emt 0:00:35][%cal Oe8f8]} 58. e4 {[%emt 0:00:12] [#]} (58. f5 $1 $11 {remains equal.}) 58... Bxf4 $1 $17 {[%emt 0:00:05]} 59. Ra2 {[%emt 0:01:10]} Be5 {[%emt 0:00:50]} ({Of course not} 59... Rxe4 60. Ra3+ Kd4 61. Ra8 $11) 60. Ra3+ {[%emt 0:00:18]} Bc3 {[%emt 0:00:07]} 61. Ra4 {[%emt 0:00:46]} Rf8+ {[%emt 0:00:08]} 62. Kg4 {[%emt 0:00:03]} Bd4 {[%emt 0:00:06]} 63. e5 {[%emt 0:00:37]} Bxe5 {[%emt 0:00:05]} 64. Kg5 {[%emt 0:00:07]} Bd4 {[%emt 0:00:08]} 65. Kg4 {[%emt 0:00:33]} Ke4 {[%emt 0:00:08]} 66. Kg5 {[%emt 0:00:14]} Rg8+ {[%emt 0:00:05]} 67. Kh6 {[%emt 0:00:55]} Ke5 {[%emt 0:00:23]} 68. Ra5+ {[%emt 0:00:38]} Kf6 {[%emt 0:00:06][%cal Rg8h8]} 69. Ra6+ $2 {[%emt 0:00:19][%mdl 8192] White does not recover from this.} (69. Kh5 $17) 69... Kf5 {[%emt 0:00:07][%cal Rg8h8] Black mates.} 70. Ra5+ {[%emt 0:00:25]} Be5 {[%emt 0:00:06][%cal Rg8h8]} 71. Ra7 {[%emt 0:00:18]} Rg2 {[%emt 0:01:17][%cal Rg2h2]} 72. Rf7+ {[%emt 0:00:43] [#]} Bf6 $1 {[%emt 0:00:11][%cal Rg2h2]} 73. Kh7 {[%emt 0:01:02]} Rh2+ {[%emt 0:00:05] Weighted Error Value: White=0.11 (very precise) /Black=0.08 (flawless)   Loses game:     	White=1     	---        Mistake:       	White=3     	---        Inaccurate:     	White=4     	Black=6      OK:         	White=25    	Black=24     Best:        	White=2     	Black=4      Strong:       	White=2     	---        Brilliant:      	---       	Black=1} 0-1